[Event "*** Titled Tuesday Blitz"]
[Site "Chess.com"]
[Date "2020.10.27"]
[Round "11"]
[White "Unknown_IM"]
[Black "MathiasWomacka"]
[Result "1/2-1/2"]
[WhiteElo "2338"]
[BlackElo "2490"]
[TimeControl "180+1"]
[EndTime "12:08:13 PDT"]
[Termination "Game drawn - timeout vs insufficient material"]

1. e4 {[%clk 0:03:00.2]} 1... c5 {[%clk 0:02:59.9]} 2. Nc3 {[%clk 0:02:59.8]}
2... Nc6 {[%clk 0:02:58.4]} 3. Bb5 {[%clk 0:02:59.3]} 3... Nd4 {[%clk
0:02:57.3]} 4. Nf3 {[%clk 0:02:59.2]} 4... Nxb5 {[%clk 0:02:56]} 5. Nxb5 {[%clk
0:03:00.1]} 5... d6 {[%clk 0:02:55]} 6. d4 {[%clk 0:02:59.7]} 6... Nf6 {[%clk
0:02:53]} 7. dxc5 {[%clk 0:02:47]} 7... Qa5+ {[%clk 0:02:42.6]} 8. Nc3 {[%clk
0:02:46]} 8... Nxe4 {[%clk 0:02:42.5]} 9. O-O {[%clk 0:02:42.3]} 9... Nxc3
{[%clk 0:02:41.5]} 10. bxc3 {[%clk 0:02:41]} 10... Qxc5 {[%clk 0:02:18.4]} 11.
Be3 {[%clk 0:02:40.7]} 11... Qc7 {[%clk 0:02:16.8]} 12. Re1 {[%clk 0:02:35.4]}
12... e5 {[%clk 0:02:15.6]} 13. Nd2 {[%clk 0:02:26]} 13... Be7 {[%clk
0:02:14.4]} 14. c4 {[%clk 0:02:24.5]} 14... O-O {[%clk 0:02:12.7]} 15. f4 {[%clk
0:02:22.5]} 15... Be6 {[%clk 0:02:03.9]} 16. c5 {[%clk 0:02:20.3]} 16... exf4
{[%clk 0:01:48.7]} 17. cxd6 {[%clk 0:01:57.6]} 17... Bxd6 {[%clk 0:01:48.5]} 18.
Bd4 {[%clk 0:01:57.3]} 18... Bc5 {[%clk 0:01:41.9]} 19. Ne4 {[%clk 0:01:54.1]}
19... Bxd4+ {[%clk 0:01:38]} 20. Qxd4 {[%clk 0:01:54.1]} 20... Rfd8 {[%clk
0:01:38.1]} 21. Qf2 {[%clk 0:01:53.2]} 21... b6 {[%clk 0:01:27.9]} 22. Ng5
{[%clk 0:01:43.6]} 22... Bd5 {[%clk 0:01:23.4]} 23. Rad1 {[%clk 0:01:43.1]}
23... h6 {[%clk 0:01:22.6]} 24. Nh3 {[%clk 0:01:41.7]} 24... Bxa2 {[%clk
0:01:18.7]} 25. Nxf4 {[%clk 0:01:39.4]} 25... Rxd1 {[%clk 0:01:12]} 26. Rxd1
{[%clk 0:01:40.3]} 26... Rd8 {[%clk 0:01:11.4]} 27. Re1 {[%clk 0:01:39.6]} 27...
Qc5 {[%clk 0:01:08.1]} 28. Qxc5 {[%clk 0:01:35.8]} 28... bxc5 {[%clk 0:01:08.7]}
29. Ra1 {[%clk 0:01:35.9]} 29... Bc4 {[%clk 0:00:58.9]} 30. Rxa7 {[%clk
0:01:35.2]} 30... Rd1+ {[%clk 0:00:56.2]} 31. Kf2 {[%clk 0:01:34.8]} 31... Rd2+
{[%clk 0:00:56.7]} 32. Ke3 {[%clk 0:01:35.3]} 32... Rxc2 {[%clk 0:00:56.7]} 33.
Rc7 {[%clk 0:01:34.3]} 33... Bb3 {[%clk 0:00:49.3]} 34. h4 {[%clk 0:01:25.5]}
34... g5 {[%clk 0:00:46.7]} 35. hxg5 {[%clk 0:01:21.3]} 35... hxg5 {[%clk
0:00:47.6]} 36. Nh5 {[%clk 0:01:21.9]} 36... Be6 {[%clk 0:00:38.7]} 37. g4
{[%clk 0:01:13.8]} 37... Kf8 {[%clk 0:00:31.6]} 38. Kd3 {[%clk 0:01:11.5]} 38...
Rc1 {[%clk 0:00:25.1]} 39. Kd2 {[%clk 0:01:11.2]} 39... Rc4 {[%clk 0:00:24.5]}
40. Nf6 {[%clk 0:01:07.9]} 40... Kg7 {[%clk 0:00:13.9]} 41. Ne8+ {[%clk
0:00:53.4]} 41... Kg6 {[%clk 0:00:13.7]} 42. Kd3 {[%clk 0:00:54.3]} 42... Rxg4
{[%clk 0:00:11.9]} 43. Rxc5 {[%clk 0:00:53.6]} 43... Ra4 {[%clk 0:00:11.2]} 44.
Ke3 {[%clk 0:00:51.6]} 44... Ra3+ {[%clk 0:00:10.2]} 45. Kf2 {[%clk 0:00:50.7]}
45... g4 {[%clk 0:00:08.7]} 46. Nd6 {[%clk 0:00:48.7]} 46... f5 {[%clk
0:00:08.6]} 47. Rc4 {[%clk 0:00:46.7]} 47... Kg5 {[%clk 0:00:08.4]} 48. Rb4
{[%clk 0:00:43.7]} 48... f4 {[%clk 0:00:08.2]} 49. Ne4+ {[%clk 0:00:43.1]} 49...
Kh4 {[%clk 0:00:08]} 50. Rb8 {[%clk 0:00:39.5]} 50... Ra2+ {[%clk 0:00:07.8]}
51. Ke1 {[%clk 0:00:33.6]} 51... g3 {[%clk 0:00:08.2]} 52. Rh8+ {[%clk
0:00:30.1]} 52... Kg4 {[%clk 0:00:07.9]} 53. Rg8+ {[%clk 0:00:25.5]} 53... Kf3
{[%clk 0:00:07.2]} 54. Nd2+ {[%clk 0:00:25.4]} 54... Ke3 {[%clk 0:00:05.8]} 55.
Nf1+ {[%clk 0:00:25.5]} 55... Kd4 {[%clk 0:00:03.5]} 56. Nxg3 {[%clk 0:00:23.9]}
56... fxg3 {[%clk 0:00:01.8]} 57. Rxg3 {[%clk 0:00:24.8]} 57... Bd5 {[%clk
0:00:01.5]} 58. Rh3 {[%clk 0:00:20.2]} 58... Be4 {[%clk 0:00:01.6]} 59. Rb3
{[%clk 0:00:19.3]} 59... Bd3 {[%clk 0:00:01.4]} 60. Rb8 {[%clk 0:00:18.9]} 60...
Ke3 {[%clk 0:00:01.4]} 61. Re8+ {[%clk 0:00:18.2]} 61... Be4 {[%clk 0:00:01.6]}
62. Rd8 {[%clk 0:00:16]} 62... Ra1+ {[%clk 0:00:02.5]} 63. Rd1 {[%clk
0:00:16.2]} 63... Ra2 {[%clk 0:00:03.4]} 64. Rd8 {[%clk 0:00:15.8]} 64... Rh2
{[%clk 0:00:04.3]} 65. Rf8 {[%clk 0:00:13.3]} 65... Re2+ {[%clk 0:00:04.8]} 66.
Kd1 {[%clk 0:00:12.7]} 66... Ra2 {[%clk 0:00:04.9]} 67. Rc8 {[%clk 0:00:11.1]}
67... Rf2 {[%clk 0:00:03.8]} 68. Rc3+ {[%clk 0:00:09.9]} 68... Bd3 {[%clk
0:00:03.1]} 69. Kc1 {[%clk 0:00:09.4]} 69... Rf1+ {[%clk 0:00:01.4]} 70. Kb2
{[%clk 0:00:09.2]} 70... Kd4 {[%clk 0:00:01.7]} 71. Rc8 {[%clk 0:00:08]} 71...
Rb1+ {[%clk 0:00:02.6]} 72. Ka2 {[%clk 0:00:07.8]} 72... Rb7 {[%clk 0:00:03.1]}
73. Ka3 {[%clk 0:00:07.7]} 73... Bc4 {[%clk 0:00:02.9]} 74. Ka4 {[%clk 0:00:06]}
74... Kc3 {[%clk 0:00:02.2]} 75. Ka5 {[%clk 0:00:06]} 75... Rb5+ {[%clk
0:00:01.8]} 76. Ka6 {[%clk 0:00:05.5]} 76... Rb8+ {[%clk 0:00:01.6]} 77. Ka7
{[%clk 0:00:05.2]} 77... Rxc8 {[%clk 0:00:01.1]} 78. Kb7 {[%clk 0:00:06.1]}
1/2-1/2